Cogmind - Beta 12 X4 @@@ ROGUE MODE // 2022.11.29 @ 20:46:31 Player: Lunatic Blue Result: Destroyed by as-65786 with Assembled Maul Performance ------------- Evolutions (3) 1500 Regions Visited (10) 2000 Robots Destroyed (43) 215 Value Destroyed (1213) 1213 Prototype IDs (10) 200 Alien Tech Used (0) 0 Bonus (2121) 2121 TOTAL SCORE: 7249 Bonus ------- High Alert Combat Kills 47 Follower Combat Kills 74 Destroyed Z-Imprinter 1000 Triggered Deep Caves Wall 500 Exposed GOLEM Chamber 500 Cogmind --------- Core Integrity 0/700 Matter 300/300 Energy 67/100 System Corruption 2% Temperature Cool (29) Movement Core (100) Ox1 Location -7/Deep Caves Parts ------- > --- POWER (1) -------- (None) > --- PROPULSION (5) --- Assembled Alloy Leg > --- UTILITY (4) ------ Small Storage Unit GOLEM Unit > --- WEAPON (3) ------- (None) > --- INVENTORY (8) ---- Zionite Light DM Reactor Zionite Light DM Reactor Experimental Heat Sink Experimental Heat Sink Small Storage Unit Layered Medium Armor Plating Peak State ------------ > --- POWER ------------ Zionite Light DM Reactor > --- PROPULSION ------- Hover Unit Zionite Glidesys I Zionite Glidesys I Zionite Glidesys I Zionite Glidesys I > --- UTILITY ---------- Experimental Heat Sink Small Storage Unit Zionite Biocell Layered Medium Armor Plating > --- WEAPON ----------- Zionite Laser-S Zionite Laser-M Improved EM Pulse Cannon > --- INVENTORY -------- Zionite Light DM Reactor Experimental Heat Sink Small Storage Unit Surveybot 24 Scanner Surveybot 24 Chip Zionite Light Carapace Great Maul [Rating: 74] Favorites ----------- Power Ion Engine Engine Ion Engine Power Core Micro Nuclear Core Reactor Zionite Light DM Reactor Propulsion Cesium-ion Thruster Treads Light Treads Leg Assembled Alloy Leg Wheel Wheel Hover Unit Zionite Glidesys I Flight Unit Cesium-ion Thruster Utility Small Storage Unit Device Cooling System Storage Small Storage Unit Processor Signal Interpreter Hackware Hacking Suite Protection Light Armor Plating Weapon Improved EM Shotgun Energy Gun Improved EM Shotgun Energy Cannon Improved EM Pulse Cannon Ballistic Gun Autogun Launcher Rocket Launcher Special Weapon Plasma Cutter Impact Weapon Great Maul Slashing Weapon Greatsword Build | -11 -10 -10 -9 -9 -8 -7 -7 -7 -7 -7 ------- Run | Scr Mat Min Mat Min Mat Fac Low Low Zio Dee Slots Evolved 6 | . . . 2 . 2 2 . . . . Power . | . . . . . . . . . . . Propulsion 3 | . . . . . 2 1 . . . . Utility 2 | . . . 1 . . 1 . . . . Weapon 1 | . . . 1 . . . . . . . Parts Attached 68 | 6 3 1 21 4 3 5 . . 3 22 Power 5 | 1 . . 2 1 . . . . . 1 Engine 2 | 1 . . 1 . . . . . . . Core 2 | . . . 1 1 . . . . . . Reactor 1 | . . . . . . . . . . 1 Propulsion 18 | 2 . . 4 . 2 1 . . 1 8 Treads 1 | 1 . . . . . . . . . . Leg . | . . . . . . . . . . . Wheel 1 | 1 . . . . . . . . . . Hover 8 | . . . 2 . . . . . . 6 Flight 8 | . . . 2 . 2 1 . . 1 2 Utility 20 | 1 1 1 6 2 1 1 . . . 7 Device 8 | . 1 1 2 1 . . . . . 3 Storage 5 | 1 . . 2 . 1 . . . . 1 Processor 1 | . . . . 1 . . . . . . Hackware 2 | . . . 1 . . 1 . . . . Protection 4 | . . . 1 . . . . . . 3 Artifact . | . . . . . . . . . . . Weapon 25 | 2 2 . 9 1 . 3 . . 2 6 Energy Gun 10 | 1 2 . 3 . . . . . . 4 Energy Cannon 1 | . . . . . . . . . . 1 Ballistic Gun 8 | 1 . . 6 . . 1 . . . . Ballistic Cannon . | . . . . . . . . . . . Launcher 1 | . . . . 1 . . . . . . Special Weapon 1 | . . . . . . 1 . . . . Impact Weapon 1 | . . . . . . . . . . 1 Slashing Weapon 3 | . . . . . . 1 . . 2 . Piercing Weapon . | . . . . . . . . . . . Special Melee Weapon . | . . . . . . . . . . . Unidentified Prototypes 9 | . 1 . . . . . . . . 8 Corrupted Parts 1 | . . . . . . . . . . 1 System Corruption 2 | . . . . . . . . . . 2 Parts Lost 32 | . . . 5 . . . . 1 . 26 Power 3 | . . . 1 . . . . . . 2 Propulsion 13 | . . . 1 . . . . . . 12 Utility 5 | . . . . . . . . . . 5 Weapon 11 | . . . 3 . . . . 1 . 7 Highest Loss Streak 11 | . . . 2 . . . . 1 . 11 To Critical Strikes . | . . . . . . . . . . . Average Slot Usage (%) 90 | . 93 100 92 66 81 97 100 86 93 82 Engine 5 | . 14 14 8 . . . . . . . Core 3 | . . . 2 11 9 7 7 7 7 2 Treads 4 | . 14 14 5 . . . . . . . Wheel 4 | . 14 14 5 . . . . . . . Hover 5 | . . . 7 . . . . . . 16 Flight 13 | . . . . 22 36 38 38 31 37 12 Device 8 | . 7 14 14 11 . . . . . 5 Storage 9 | . 14 14 10 . 9 7 7 7 7 9 Processor 1 | . . . . 1 9 7 7 7 7 . Hackware 5 | . . . 1 11 9 14 15 15 15 5 Protection 2 | . . . 5 . . . . . . 4 Energy Gun 11 | . 23 28 16 . . . . . . 7 Ballistic Gun 7 | . 4 . 14 . . 6 7 7 7 2 Launcher 1 | . . . . 9 9 7 7 1 . . Slashing Weapon 2 | . . . . . . 3 7 7 8 2 Naked Turns . | . . . . . . . . . . . Heaviest Build 41 | 14 18 18 29 11 15 22 22 22 21 41 Greatest Support 62 | 10 10 10 14 10 20 25 25 25 28 62 Greatest Overweight (x) 4 | 1 1 1 4 1 . . . . . 3 Average Overweight (x) . | . 1 1 1 . . . . . . . Largest Inventory Capacity 10 | 8 8 8 10 5 8 8 8 8 8 8 Average Capacity 8 | 6 8 8 9 5 7 8 8 8 8 8 Most Carried 10 | 4 8 8 10 5 6 8 8 8 8 8 Average Carried 7 | 2 6 8 7 4 4 6 8 8 7 7 Final Capacity 8 | 8 8 8 5 5 8 8 8 8 8 8 Final Carried 8 | 4 8 8 5 5 6 8 8 8 8 6 Class Distribution -------------------- 28% | Hacker-Sprinter 22% | Mutant 15% | Gunner 12% | Tank 7% | Scavenger-Mutant 6% | Scavenger-Tank 5% | Sprinter Dominant Class ---------------- Mutant | -10/Materials Mutant | -10/Mines Gunner | -9/Materials Sprinter | -9/Mines Sprinter | -8/Materials Hacker-Sprinter | -7/Factory Hacker-Sprinter | -7/Lower Caves Hacker-Sprinter | -7/Lower Caves Hacker-Sprinter | -7/Zion Scavenger-Mutant | -7/Deep Caves Resources | -11 -10 -10 -9 -9 -8 -7 -7 -7 -7 -7 ----------- Run | Scr Mat Min Mat Min Mat Fac Low Low Zio Dee Matter Collected 1138 | 217 65 11 383 112 74 . 27 22 20 207 Remotely 400 | . . . 288 112 . . . . . . Salvage Created 1599 | . 95 161 933 11 . . . . . 399 Parts 120 | . 8 14 66 9 . . . . . 23 Haulers Intercepted 2 | . 1 . 1 . . . . . . . Recyclers Shooed 2 | . . . 2 . . . . . . . Parts Field Recycled . | . . . . . . . . . . . Retrieved Matter . | . . . . . . . . . . . Parts Self-Destructed . | . . . . . . . . . . . Prevented . | . . . . . . . . . . . Kills | -11 -10 -10 -9 -9 -8 -7 -7 -7 -7 -7 ------- Run | Scr Mat Min Mat Min Mat Fac Low Low Zio Dee Combat Hostiles Destroyed 31 | . . 2 17 7 . . . . . 5 Guns 20 | . . 2 16 . . . . . . 2 Cannons 2 | . . . . . . . . . . 2 AOE 8 | . . . 1 7 . . . . . . Classes Destroyed 12 | . 3 1 6 . . . . . . 2 Worker 4 | . 1 2 1 . . . . . . . Builder 1 | . . . 1 . . . . . . . Tunneler 1 | . 1 . . . . . . . . . Hauler 2 | . 1 . 1 . . . . . . . Operator 3 | . . . 3 . . . . . . . Watcher 1 | . . . 1 . . . . . . . Swarmer 10 | . . . 3 7 . . . . . . Grunt 12 | . . 2 10 . . . . . . . Brawler 1 | . . . 1 . . . . . . . Sentry 3 | . . . 3 . . . . . . . Z-Light 3 | . . . . . . . . . . 3 Golem 1 | . . . . . . . . . . 1 Best Kill Streak 7 | . 2 2 4 7 . . . . . 2 Combat Bots Only 7 | . . 2 4 7 . . . . . 2 Max Kills in Single Turn 2 | . 1 1 2 2 . . . . . 1 Gunslinging 1 | . . . 1 . . . . . . . Exploded 2 | . . . 1 2 . . . . . . Melee . | . . . . . . . . . . . Uniques/NPCs Destroyed 1 | . . . . . . . . . . 1 Z-Imprinter (-7/Deep Caves) Combat | -11 -10 -10 -9 -9 -8 -7 -7 -7 -7 -7 -------- Run | Scr Mat Min Mat Min Mat Fac Low Low Zio Dee Damage Taken 3559 | . 29 63 816 34 7 . 129 112 . 2369 Core 839 | . . . 128 8 . . . 17 . 686 Absorbed by Shields . | . . . . . . . . . . . Redirected to Shielding 119 | . . . . . . . . . . 119 Regen/Repaired (Parts) 205 | . . . . . . . . . 205 . Core Remaining (%) 91 | 100 . 100 . 66 100 . . . . . Volleys Fired 100 | 1 8 7 48 6 . . . 1 . 29 Largest 3 | 2 2 2 3 1 . . . 1 . 3 Hottest 215 | 70 90 90 135 33 . . . 28 . 215 Shots Fired 189 | 2 16 14 114 6 . . . 1 . 36 Gun 173 | 2 16 14 114 . . . . 1 . 26 Cannon 10 | . . . . . . . . . . 10 Launcher 6 | . . . . 6 . . . . . . Special . | . . . . . . . . . . . Kinetic 77 | 1 . . 57 . . . . 1 . 18 Thermal 9 | 1 . . . . . . . . . 8 Explosive 6 | . . . . 6 . . . . . . Electromagnetic 97 | . 16 14 57 . . . . . . 10 Robot Hit Streak 13 | . 2 5 13 2 . . . . . 6 Robot Miss Streak 4 | . 4 3 4 1 . . . 2 . 2 Penetration Max . | . . . . . . . . . . . Secondary Targets 2 | . 1 . 1 . . . . . . . Max Gunslinging Chain 1 | . 1 . 1 . . . . . . . Shots Hit Robots 128 | . 11 11 78 2 . . . 1 . 25 Core Hits 68 | . 4 5 43 5 . . . . . 11 Critical Kills . | . . . . . . . . . . . Critical Parts Destroyed . | . . . . . . . . . . . Critical Strikes 1 | . . . . . . . . . . 1 Corrupt 1 | . . . . . . . . . . 1 Melee Attacks 20 | . . . . . . 3 4 2 7 4 Impact . | . . . . . . . . . . . Slashing 20 | . . . . . . 3 4 2 7 4 Piercing . | . . . . . . . . . . . Sneak Attacks . | . . . . . . . . . . . Combat Hostiles . | . . . . . . . . . . . Follow-up Attacks . | . . . . . . . . . . . Damage Inflicted 3013 | . 202 227 1365 513 . . . 38 . 668 Guns 1741 | . 171 140 1220 . . . . . . 210 Cannons 225 | . . . . . . . . . . 225 Explosions 776 | . 31 87 145 513 . . . . . . Melee 267 | . . . . . . . . 38 . 229 Ramming 4 | . . . . . . . . . . 4 Kinetic 699 | . . . 523 . . . . . . 176 Thermal 297 | . 31 87 145 . . . . . . 34 Explosive 513 | . . . . 513 . . . . . . Electromagnetic 1233 | . 171 140 697 . . . . . . 225 Impact . | . . . . . . . . . . . Slashing 267 | . . . . . . . . 38 . 229 Piercing . | . . . . . . . . . . . Highest Corruption 2 | . 2 2 . . . . . . . 2 Average Corruption 2 | . 2 2 . . . . . . . 2 Corruption Purged . | . . . . . . . . . . . Corruption Blocked . | . . . . . . . . . . . Effects 4 | . 1 3 . . . . . . . . Message Errors 2 | . 1 1 . . . . . . . . Energy Discharges 2 | . . 2 . . . . . . . . Overload Shots . | . . . . . . . . . . . Overflow Damage 59 | . . . . 59 . . . . . . Projectiles . | . . . . . . . . . . . Explosions 59 | . . . . 59 . . . . . . Melee . | . . . . . . . . . . . Knockbacks 1 | . . . . . . . . . . 1 Impact 1 | . . . . . . . . . . 1 Kinetic . | . . . . . . . . . . . Secondary . | . . . . . . . . . . . Self-Inflicted Damage 104 | . . 40 48 14 . . . . . 2 Shots 4 | . . 1 2 1 . . . . . . Rammed 1 | . . . . . . . . . . 1 Targets Rammed 1 | . . . . . . . . . . 1 Kicked . | . . . . . . . . . . . Crushed . | . . . . . . . . . . . Highest Temperature 325 | 9 118 75 82 1 . 4 35 2 . 325 Average Temperature 31 | 6 48 29 20 1 . 2 14 2 . 102 Received Heat Transfer 844 | . 18 15 264 . . . 51 9 . 487 Siege Activations . | . . . . . . . . . . . Robots Corrupted 1 | . . . . . . . . . . 1 Combat Hostiles 1 | . . . . . . . . . . 1 Parts Fried 4 | . . . 1 . . . . . . 3 Impact Corruptions . | . . . . . . . . . . . Robots Melted . | . . . . . . . . . . . Combat Hostiles . | . . . . . . . . . . . Parts Melted . | . . . . . . . . . . . Heat Transferred 337 | . 50 50 200 . . . . . . 37 Parts Sabotaged . | . . . . . . . . . . . Parts Stolen 1 | . . . . . . . . 1 . . Parts Stripped . | . . . . . . . . . . . Power Chain Reactions 6 | . 1 2 3 . . . . . . . Missiles Intercepted . | . . . . . . . . . . . Alert | -11 -10 -10 -9 -9 -8 -7 -7 -7 -7 -7 ------- Run | Scr Mat Min Mat Min Mat Fac Low Low Zio Dee Peak Influence 521 | . 113 142 521 338 220 281 . . . . Initial 131 | . . 43 55 43 131 100 . . . . Average 197 | . 19 75 288 251 158 191 . . . . Maximum Alert Level 2 | . . . 2 1 1 1 . . . . Low Security (%) 55 | 100 100 100 26 38 82 57 . . . . Level 1 37 | . . . 60 61 17 42 . . . . Level 2 6 | . . . 13 . . . . . . . Level 3 . | . . . . . . . . . . . Level 4 . | . . . . . . . . . . . Level 5 . | . . . . . . . . . . . High Security . | . . . . . . . . . . . Max Security . | . . . . . . . . . . . Squads Dispatched 6 | . . . 4 1 1 . . . . . Investigation 1 | . . . . 1 . . . . . . Extermination . | . . . . . . . . . . . Reinforcement 5 | . . . 4 . 1 . . . . . Assault . | . . . . . . . . . . . Garrison . | . . . . . . . . . . . Intercept . | . . . . . . . . . . . Searches Triggered . | . . . . . . . . . . . Construction Impeded . | . . . . . . . . . . . Haulers Reinforced . | . . . . . . . . . . . Active Scanning Responses . | . . . . . . . . . . . Cargo Convoy Interrupts . | . . . . . . . . . . . Stealth | -11 -10 -10 -9 -9 -8 -7 -7 -7 -7 -7 --------- Run | Scr Mat Min Mat Min Mat Fac Low Low Zio Dee Distress Signals 4 | . 1 . 2 . 1 . . . . . Communications Jammed . | . . . . . . . . . . . Distress Signals . | . . . . . . . . . . . Times Spotted 128 | . 6 2 31 9 10 4 9 12 . 45 Peak Tracking Total 38 | . 4 2 11 3 8 3 11 8 . 38 Tactical Retreats 14 | . 1 . 5 . 1 2 1 1 . 3 Traps | -11 -10 -10 -9 -9 -8 -7 -7 -7 -7 -7 ------- Run | Scr Mat Min Mat Min Mat Fac Low Low Zio Dee Traps Triggered 1 | . 1 . . . . . . . . . Indirectly . | . . . . . . . . . . . Trap Hack Attempts . | . . . . . . . . . . . Triggered . | . . . . . . . . . . . Disarmed . | . . . . . . . . . . . Reprogrammed . | . . . . . . . . . . . Reused . | . . . . . . . . . . . Traps Extracted . | . . . . . . . . . . . Installed . | . . . . . . . . . . . Triggered . | . . . . . . . . . . . Machines | -11 -10 -10 -9 -9 -8 -7 -7 -7 -7 -7 ---------- Run | Scr Mat Min Mat Min Mat Fac Low Low Zio Dee Machines Disabled 2 | . . . 1 . . . . . . 1 Max in Single Turn 1 | . . . 1 . . . . . . 1 Machines Sabotaged . | . . . . . . . . . . . Overloaded Fab Kills . | . . . . . . . . . . . Hacking | -11 -10 -10 -9 -9 -8 -7 -7 -7 -7 -7 --------- Run | Scr Mat Min Mat Min Mat Fac Low Low Zio Dee Machines Accessed 13 | . 2 . 4 1 1 3 1 . 1 . Terminals 10 | . 2 . 4 . 1 3 . . . . Fabricators . | . . . . . . . . . . . Repair Stations . | . . . . . . . . . . . Recycling Units . | . . . . . . . . . . . Scanalyzers . | . . . . . . . . . . . Garrison Access . | . . . . . . . . . . . Total Hacks 38 | . 9 . 12 1 2 9 1 . 4 . Successful 19 | . 4 . 3 1 1 5 1 . 4 . Failed 18 | . 4 . 9 . 1 4 . . . . Catastrophic 4 | . 1 . 1 . 1 1 . . . . Database Lockouts 1 | . 1 . . . . . . . . . Manual 17 | . 9 . . . 2 5 . . 1 . Terminals 32 | . 9 . 12 . 2 9 . . . . Fabricators . | . . . . . . . . . . . Repair Stations . | . . . . . . . . . . . Recycling Units . | . . . . . . . . . . . Scanalyzers . | . . . . . . . . . . . Garrison Access . | . . . . . . . . . . . Terminal Hacks 14 | . 3 . 3 1 . 2 1 . 4 . Part Schematic 4 | . . . . . . . . . 4 . Robot Analysis 2 | . 1 . . . . 1 . . . . Open Door 2 | . . . . 1 . . 1 . . . Branch Access Points 1 | . . . . . . 1 . . . . Unreport Threat 2 | . . . 2 . . . . . . . Hauler Manifests 1 | . . . 1 . . . . . . . Zone Layout 2 | . 2 . . . . . . . . . Fabricator Hacks . | . . . . . . . . . . . Repair Station Hacks . | . . . . . . . . . . . Recycling Unit Hacks . | . . . . . . . . . . . Scanalyzer . | . . . . . . . . . . . Garrison Access Hacks . | . . . . . . . . . . . Unauthorized Hacks 5 | . 1 . . . 1 3 . . . . Terminals 5 | . 1 . . . 1 3 . . . . Assimilate 2 | . . . . . 1 1 . . . . Botnet 1 | . . . . . . 1 . . . . Operators 2 | . 1 . . . . 1 . . . . Fabricators . | . . . . . . . . . . . Repair Stations . | . . . . . . . . . . . Recycling Units . | . . . . . . . . . . . Scanalyzers . | . . . . . . . . . . . Garrison Access . | . . . . . . . . . . . Data Cores Recovered . | . . . . . . . . . . . Used . | . . . . . . . . . . . Hacking Detections 10 | . 2 . 4 . 1 3 . . . . Full Trace Events . | . . . . . . . . . . . Feedback Events . | . . . . . . . . . . . Feedback Blocked . | . . . . . . . . . . . Robot Schematics Acquired . | . . . . . . . . . . . Robots Built . | . . . . . . . . . . . Authchips . | . . . . . . . . . . . Time . | . . . . . . . . . . . Total Robot Build Rating . | . . . . . . . . . . . Part Schematics Acquired 4 | . . . . . . . . . 4 . Parts Built . | . . . . . . . . . . . Authchips . | . . . . . . . . . . . Time . | . . . . . . . . . . . Total Part Build Rating . | . . . . . . . . . . . Parts Repaired . | . . . . . . . . . . . Time . | . . . . . . . . . . . Parts Recycled . | . . . . . . . . . . . Recycled Matter . | . . . . . . . . . . . Retrieved Matter . | . . . . . . . . . . . Retrieved Components . | . . . . . . . . . . . Parts Scanalyzed . | . . . . . . . . . . . Part Schematics Acquired . | . . . . . . . . . . . Parts Damaged . | . . . . . . . . . . . Bothacking | -11 -10 -10 -9 -9 -8 -7 -7 -7 -7 -7 ------------ Run | Scr Mat Min Mat Min Mat Fac Low Low Zio Dee Used RIF Installer . | . . . . . . . . . . . Robots Hacked . | . . . . . . . . . . . Non-combat . | . . . . . . . . . . . Combat . | . . . . . . . . . . . Robot Hacks Applied . | . . . . . . . . . . . Relay Couplers Released . | . . . . . . . . . . . Fabnet Peak Effective % . | . . . . . . . . . . . Robots Rewired . | . . . . . . . . . . . Allies Hacked . | . . . . . . . . . . . Hacks Repelled . | . . . . . . . . . . . Allies | -11 -10 -10 -9 -9 -8 -7 -7 -7 -7 -7 -------- Run | Scr Mat Min Mat Min Mat Fac Low Low Zio Dee Total Allies 10 | . . 1 . . 1 1 . . 7 . Largest Group 7 | . . 1 . . 1 1 . . 7 7 Highest-Rated Group 305 | . . 31 . . 26 26 . . 305 305 Highest-Rated Ally 96 | . . 31 . . 26 26 . . 96 96 Total Orders . | . . . . . . . . . . . Ally Attacks 81 | . . 1 . . . . . . . 80 Total Damage 1076 | . . 22 . . . . . . . 1054 Kills 7 | . . . . . . . . . . 7 Allies Corrupted . | . . . . . . . . . . . Allies Melted . | . . . . . . . . . . . Intel | -11 -10 -10 -9 -9 -8 -7 -7 -7 -7 -7 ------- Run | Scr Mat Min Mat Min Mat Fac Low Low Zio Dee Robot Analysis Total 2 | . 1 . . . . 1 . . . . Derelict Logs Recovered 2 | . . 1 . . . . . 1 . . Drone Launches . | . . . . . . . . . . . Drone Recoveries . | . . . . . . . . . . . Exploration | -11 -10 -10 -9 -9 -8 -7 -7 -7 -7 -7 ------------- Run | Scr Mat Min Mat Min Mat Fac Low Low Zio Dee Turns Passed 2536 | 56 158 293 817 62 57 151 74 64 315 489 Spaces Moved 3665 | 47 130 283 476 102 193 569 272 220 773 600 Core 4 | 2 . . . . . . . . . 2 Treads . | . . . . . . . . . . . Legs . | . . . . . . . . . . . Wheels 723 | 45 130 283 265 . . . . . . . Hover 653 | . . . 182 . . . . . . 471 Flight 2285 | . . . 29 102 193 569 272 220 773 127 Fastest Speed 23 | 50 95 95 32 32 26 23 23 23 26 27 Average Speed 52 | 85 95 95 129 41 26 23 23 25 26 52 Slowest Speed 355 | 95 95 95 355 112 26 26 23 26 27 325 Overloaded Moves . | . . . . . . . . . . . Propulsion Burnouts . | . . . . . . . . . . . Robots Hopped 8 | . . . . 2 . 6 . . . . Cave-ins Triggered . | . . . . . . . . . . . Exploration Rate (%) 40 | 3 25 66 41 21 22 17 54 40 78 76 Regions Visited 10 Branch Regions 6 Pre-discovered Areas 3 | . . 1 . . . . . 1 1 . Known Exits Taken 6 | . . . . 1 1 1 1 1 1 . Unknown Exits Taken 4 | 1 1 1 1 . . . . . . . Scrap Searched 6 | . . . . 1 . . 2 . 3 . Spaces Dug 26 | . . . . 16 . 3 4 . 3 . Terrain Destroyed 97 | . 4 12 11 54 . 3 4 . 3 6 Melee 10 | . . . . . . 3 4 . 3 . Projectile 6 | . . . . . . . . . . 6 AOE 81 | . 4 12 11 54 . . . . . . Terrain Rammed . | . . . . . . . . . . . Walls Destroyed . | . . . . . . . . . . . Machines Disabled . | . . . . . . . . . . . Actions | -11 -10 -10 -9 -9 -8 -7 -7 -7 -7 -7 --------- Run | Scr Mat Min Mat Min Mat Fac Low Low Zio Dee Total 4089 | 57 148 293 604 115 198 576 277 222 869 730 Wait 141 | . . . 14 1 . . . . 77 49 Move 3639 | 46 129 282 475 97 192 556 271 219 772 600 Hop 8 | . . . . 2 . 6 . . . . Pick Up 53 | 4 5 1 17 2 3 4 1 . 4 12 Fast Attach 47 | 6 3 1 13 2 . 4 . . 3 15 Attach 15 | . . . 5 2 2 1 . . . 5 Detach 2 | . . . 1 1 . . . . . . Swap 6 | . . . 3 . 1 . . . . 2 Drop 57 | . 3 2 28 2 . 2 1 . 6 13 Fire 100 | 1 8 7 48 6 . . . 1 . 29 Melee 20 | . . . . . . 3 4 2 7 4 Ram 1 | . . . . . . . . . . 1 Kick . | . . . . . . . . . . . Crush . | . . . . . . . . . . . Escape Stasis . | . . . . . . . . . . . Rewire . | . . . . . . . . . . . Trap . | . . . . . . . . . . . Miscellaneous . | . . . . . . . . . . . Route ------- -11/Scrapyard -10/Materials (discovered 2 exits: [*Min x2]) -10/Mines -9/Materials -9/Mines -8/Materials -7/Factory (discovered 2 exits: *Low x2) -7/Lower Caves -7/Lower Caves -7/Zion (discovered 2 exits: *Dee / [*Pro]) -7/Deep Caves History --------- Turn | Location | Event 17 | -11/Scrapyard | Discovered new exit (range 15) 57 | -11/Scrapyard | Entered Materials 81 | -10/Materials | Discovered new exit (range 3) 173 | -10/Materials | Discovered new exit (range 12) 198 | -10/Materials | Central database locked down 215 | -10/Materials | Entered Mines 218 | -10/Mines | Received a Mining Laser from a helpful Derelict 232 | -10/Mines | Met a Derelict bent on vengeance 318 | -10/Mines | Build established: Mutant 505 | -10/Mines | Discovered new exit (range 3) 508 | -10/Mines | Entered Materials 508 | -9/Materials | Evolved 2 slots: Utility x1, Weapon x1 1186 | -9/Materials | Build established: Gunner 1318 | -9/Materials | Discovered new exit (range 15) 1325 | -9/Materials | Entered Mines 1332 | -9/Mines | Received a Rocket Launcher from a helpful Derelict 1365 | -9/Mines | Discovered new exit (range 8) 1370 | -9/Mines | Met a Derelict shopkeep closing up shop 1374 | -9/Mines | Destroyed 7 combat bots 1386 | -9/Mines | Identified exit to Materials 1387 | -9/Mines | Entered Materials 1387 | -8/Materials | Evolved 2 slots: Propulsion x2 1443 | -8/Materials | Discovered new exit (range 6) 1444 | -8/Materials | Identified exit to Factory 1444 | -8/Materials | Entered Factory 1444 | -7/Factory | Evolved 2 slots: Propulsion x1, Utility x1 1544 | -7/Factory | Identified exit to Lower Caves 1595 | -7/Factory | Entered Lower Caves 1630 | -7/Lower Caves | Attracted the attention of an 0b10 checkpoint 1652 | -7/Lower Caves | Encountered a Warlord checkpoint 1665 | -7/Lower Caves | Discovered new exit (range 16) 1669 | -7/Lower Caves | Identified exit to Lower Caves 1669 | -7/Lower Caves | Entered another Lower Caves area 1730 | -7/Lower Caves | Build established: Hacker-Sprinter 1730 | -7/Lower Caves | Discovered new exit (range 14) 1730 | -7/Lower Caves | Spotted B-75 Beast 1733 | -7/Lower Caves | Identified exit to Zion 1733 | -7/Lower Caves | Entered Zion 1747 | -7/Zion | Gained Derelict followers 1776 | -7/Zion | Discovered new exit (range 11) 1827 | -7/Zion | Given A8's code to call for help 1837 | -7/Zion | Learned Factory emergency access door positions 1844 | -7/Zion | Received a visual enhancement algorithm 1889 | -7/Zion | Visited the Megawrench Repair Shop 1889 | -7/Zion | Megawrench repaired 9 parts 1967 | -7/Zion | Discovered new exit (range 4) 1970 | -7/Zion | Saw the warning signs outside the Deep Caves entrance 1970 | -7/Zion | Identified exit to Deep Caves 2011 | -7/Zion | Enhanced Grunt warped into view, answering call for help 2013 | -7/Zion | Enhanced Grunt warped into view, answering call for help 2048 | -7/Zion | Entered Deep Caves 2048 | -7/Deep Caves | Accompanied by 7 allies 2059 | -7/Deep Caves | Found Surveybot 24 Scanner 2061 | -7/Deep Caves | Found Surveybot 24 Chip 2129 | -7/Deep Caves | Attacked by Z-Imprinter 2189 | -7/Deep Caves | Destroyed Z-Imprinter 2219 | -7/Deep Caves | Lost 10 parts (1p6n1u2w) 2292 | -7/Deep Caves | Z-Facility disabled 2363 | -7/Deep Caves | Found Prototype Protection 2401 | -7/Deep Caves | Spotted as-45454 2410 | -7/Deep Caves | Destroyed as-45454 2437 | -7/Deep Caves | Exposed GOLEM chamber 2440 | -7/Deep Caves | Lost 3 parts (1n1u1w) 2440 | -7/Deep Caves | Identified Zio. Weapon Casing 2445 | -7/Deep Caves | Triggered Deep Caves wall 2447 | -7/Deep Caves | Found GOLEM Unit 2452 | -7/Deep Caves | Spotted AS-67256 2532 | -7/Deep Caves | Core integrity fell below 50% 2536 | -7/Deep Caves | Core integrity fell below 20% 2537 | -7/Deep Caves | Destroyed by as-65786 with Assembled Maul Last Messages --------------- 02449_ E3-D8C(s) destroyed. 02451_ Z2-FNI(i) Arm. Wheel severed. 02455_ as-14496 destroyed. 02456_ Z2-FNI(i) destroyed. 02478_ Zio. Light Carapace destroyed. 02493_ Zio. Light DM Reactor destroyed. 02505_ Zio. Glidesys I destroyed. 02509_ Hover Unit destroyed. 02525_ Zio. Glidesys I destroyed. 02529_ Zio. Weapon Casing destroyed. 02532_ Imp. EM Pulse Cannon destroyed. 02533_ Zio. Glidesys I destroyed. 02533_ Zio. Laser-M destroyed. 02534_ GOLEM Unit beginning Asb. Alloy Leg integration. 02534_ Knocked back. 02535_ Exp. Heat Sink destroyed. 02535_ as-42133 destroyed. 02535_ as-97362 destroyed. 02537_ Great Maul destroyed. 02537_ as-84956 destroyed. Map ----- +----------------------------------------------------+ | | | | | | | | | | | | | | | | | | | | | | | ?????????????????????#???????????????????????????? | | ????????????????????# ???????????????????????????? | | ????????????????????# ???????????????????????????? | | ????????????????????# ???????????????????????????? | | ???????????????????## ###?????####?#?????????????? | | ?????????????????### ###### # ##????????????? | | ?????????????????? # ##???????????? | | ?????#########????? ??????????? | | ????# ##????? ??????????? | | ???? #?????? z ?????????? | | ???? #?????## z ?????????? | | ???? #????## zzz ?????????? | | ??## #??###;% a ????????? | | ?## #?## ; aaa ????????? | | ?# #??# % @ ????????? | | ## #???#![# a a% ????????" | | #????###;# a ??????""" | | ###??????###aa ???????""" | | ######?????????# a ??????"""" | | ##??????????????## a a ???????"""" | | #???????###???####a ???????"""" | | ##?????## ##?## # ???????"""" | | ###???# #?# ????????"""" | | ##??# ### aaaa ?? ???"""" | | #???# ## ???"""" | | #??## ### ????""" | | ## ##??# #?### aa ???"""" | | ####??## ##???# "??""" | | # ##??## #????## """""" | | # #??# #?????# """""" | | # #### #??##### """""" | | # ## ##?## ## """"" | | # #??# ## """" | | ### #??# # """" | | #?## ##?## """ | | ##?## #### """" | | ##?## """"" | | #??## """ | | ##??# | +----------------------------------------------------+ Best States ------------- Heat Dissipation 60 Energy Generation 27 Energy Capacity 700 Matter Stores 300 Matter Capacity 300 Sight Range 16 Terrain Scan Range 24 Terrain Scan Density 10 Armor Coverage 625 Weapon Shielding 100 Evasion (%) 65 Recoil Reduction 1 Offensive Hacking 10 Defensive Hacking 10 Trap Extractor Capacity 4 Item Schematics ----------------- Beamcaster | -7/Zion | Free Flamer | -7/Zion | Free Enh. Flamer | -7/Zion | Free Ripper | -7/Zion | Free Robot Schematics ------------------ None Fabricated ------------ Nothing Alien Tech Used ----------------- None Achievements -------------- That's One Door That Should Stay Closed Challenges ------------ None Game ------ Seed ImpactMeleeMagmablaster Manual? 0 Play Time 00:35:10 Cumulative 109.9 hours Start 2022.11.29 @ 20:12:18 End 2022.11.29 @ 20:46:31 Sessions 1 Manual Loads 0 Difficulty Rogue Special Mode None Game No. 199 Rogue 199 Adventurer 0 Explorer 0 Win Type - Total 2 Types 1/0/1/0/0/0/0/0/0 Lore% 63 Gallery% 69 Achievement% 51 Wizard Run 0 Options --------- ASCII 0 Keyboard 0 Movement Mouse Keybinds 0 Fullscreen 1 Font 18/SmallcapsGlow Map View 76x50 Tactical HUD 1 Map Filters NONE Filters NONE Steam 1 RUN: 4cfbb8f7-324c-408d-ac21-d84016359a0d